Workbook

Sheet Лист1
A1: Школа | C1: МКОУ Вахрушевская ООШ | F1: Утвердил: | G1: должность | H1: директор
A2: Типовое примерное меню приготавливаемых блюд | G2: фамилия | H2: Летягина Т.М.
A3: Возрастная категория | E3: 7-11 лет | G3: дата | H3: 1 | I3: 9 | J3: 2025
H4: день | I4: месяц | J4: год
A5: Неделя | B5: День недели | C5: Прием пищи | D5: Раздел меню | E5: Блюда | F5: Вес блюда, г | G5: Белки | H5: Жиры | I5: Углеводы | J5: Калорийность | K5: № рецептуры | L5: Цена
A6: 1 | B6: 1 | C6: Завтрак | D6: гор.блюдо | E6: каша рисовая | F6: 200 | G6: 5.79 | H6: 9.04 | I6: 30.98 | J6: 228.85 | K6: 311 | L6: 25.11
E7: сыр порционно | F7: 20 | G7: 3.8 | H7: 3.8 | I7: 4.85 | J7: 60 | L7: 11.5
D8: гор.напиток | E8: чай с лимоном | F8: 200 | G8: 0.52 | H8: 0 | I8: 38.4 | J8: 150.63 | K8: 689 | L8: 4.2
D9: хлеб | F9: 30 | G9: 1.68 | H9: 0.33 | I9: 15.4 | J9: 73.5 | L9: 6.96
D10: фрукты | E10: яблоко | F10: 50 | G10: 0.32 | H10: 7.84 | I10: 1900-01-13T18:14:24 | J10: 36 | L10: 57.23
D13: итого | F13: =SUM(F6:F12) -> 500 | G13: =SUM(G6:G12) -> 12.11 | H13: 21.01 | I13: 103.39 | J13: 548.98 | L13: 79.66
A14: =A6 -> 1 | B14: =B6 -> 1 | C14: Обед | D14: закуска
D15: 1 блюдо
D16: 2 блюдо
D17: гарнир
D18: напиток
D19: хлеб бел.
D20: хлеб черн.
D23: итого | F23: =SUM(F14:F22) -> 0 | G23: =SUM(G14:G22) -> 0 | H23: 0 | I23: 0 | J23: 0 | L23: =SUM(L14:L22) -> 0
A24: =A6 -> 1 | B24: =B6 -> 1 | C24: Итого за день: | F24: =F13+F23 -> 500 | G24: =G13+G23 -> 12.11 | H24: 21.01 | I24: 103.39 | J24: 548.98 | L24: =L13+L23 -> 79.66
A25: 1 | B25: 2 | C25: Завтрак | D25: гор.блюдо | E25: запеканка из творога | F25: 150 | G25: 20.27 | H25: 31.68 | I25: 387.83 | J25: 387.83 | K25: 366 | L25: 26.69
E26: джем порционно | F26: 20 | G26: 0 | H26: 25.09 | I26: 100.44 | J26: 100.44 | L26: 4.80
D27: гор.напиток | E27: какао с сахаром | F27: 200 | G27: 0 | H27: 20.64 | I27: 79.5 | J27: 79.5 | K27: 693 | L27: 14.10
D28: хлеб | E28: хлеб ржанопшеничный | F28: 30 | G28: 1.68 | H28: 0.33 | I28: 15.45 | J28: 73.5 | L28: 6.96
D29: фрукты | E29: груша | F29: 100 | G29: 0.43 | H29: 0.43 | I29: 18.4 | J29: 48 | L29: 27.11
D32: итого | F32: =SUM(F25:F31) -> 500 | G32: =SUM(G25:G31) -> 22.38 | H32: 78.17 | I32: 601.62 | J32: 689.27 | L32: 79.66
A33: =A25 -> 1 | B33: =B25 -> 2 | C33: Обед | D33: закуска
D34: 1 блюдо
D35: 2 блюдо
D36: гарнир
D37: напиток
D38: хлеб бел.
D39: хлеб черн.
D42: итого | F42: =SUM(F33:F41) -> 0 | G42: =SUM(G33:G41) -> 0 | H42: =SUM(H33:H41) -> 0 | I42: =SUM(I33:I41) -> 0 | J42: =SUM(J33:J41) -> 0 | L42: 0
A43: =A25 -> 1 | B43: =B25 -> 2 | C43: Итого за день: | F43: =F32+F42 -> 500 | G43: =G32+G42 -> 22.38 | H43: =H32+H42 -> 78.17 | I43: =I32+I42 -> 601.62 | J43: =J32+J42 -> 689.27 | L43: 79.66
A44: 1 | B44: 3 | C44: Завтрак | D44: гор.блюдо | E44: каша манная | F44: 200 | G44: 5.76 | H44: 8.16 | I44: 28.25 | J44: 210.08 | K44: 311 | L44: 10.83
E45: кефир с сахаром | F45: 100 | G45: 2.37 | H45: 1.85 | I45: 13.37 | J45: 74.3 | L45: 20
D46: гор.напиток | E46: чай с сахаром | F46: 100 | G46: 0.14 | H46: 0.04 | I46: 10.01 | J46: 37.9 | K46: 685 | L46: 2.2
D47: хлеб | E47: хлеб ржано-пшеничный | F47: 40 | G47: 1.68 | H47: 0.33 | I47: 15.45 | J47: 73.5 | L47: 6.96
D48: фрукты | E48: яблоко | F48: 60 | G48: 0.32 | H48: о,48 | I48: 13.76 | J48: 36 | L48: 39.67
D51: итого | F51: =SUM(F44:F50) -> 500 | G51: =SUM(G44:G50) -> 10.27 | H51: 10.38 | I51: 80.84 | J51: 431.78 | L51: 79.66
A52: =A44 -> 1 | B52: =B44 -> 3 | C52: Обед | D52: закуска
D53: 1 блюдо
D54: 2 блюдо
D55: гарнир
D56: напиток
D57: хлеб бел.
D58: хлеб черн.
D61: итого | F61: =SUM(F52:F60) -> 0 | G61: =SUM(G52:G60) -> 0 | H61: =SUM(H52:H60) -> 0 | I61: =SUM(I52:I60) -> 0 | J61: =SUM(J52:J60) -> 0 | L61: 0
A62: =A44 -> 1 | B62: =B44 -> 3 | C62: Итого за день: | F62: =F51+F61 -> 500 | G62: =G51+G61 -> 10.27 | H62: =H51+H61 -> 10.38 | I62: =I51+I61 -> 80.84 | J62: =J51+J61 -> 431.78 | L62: 79.66
A63: 1 | B63: 4 | C63: Завтрак | D63: гор.блюдо | E63: омлет натуральный | F63: 150 | G63: 14.94 | H63: 15.5 | I63: 2.93 | J63: 209.4 | K63: 340 | L63: 44.34
D65: гор.напиток | E65: чай с молоком | F65: 200 | G65: 1.37 | H65: 0 | I65: 25.9 | J65: 100.44 | L65: 14.1
D66: хлеб | E66: хлеб ржано-пшеничный | F66: 30 | G66: 1.68 | H66: 0.33 | I66: 15.45 | J66: 73.5 | L66: 6.96
D67: фрукты | E67: апельсин | F67: 120 | G67: 0.33 | H67: 0 | I67: 18.41 | J67: 71.94 | L67: 14.26
D70: итого | F70: =SUM(F63:F69) -> 500 | G70: =SUM(G63:G69) -> 18.32 | H70: 15.83 | I70: 62.69 | J70: 455.28 | L70: 79.66
A71: =A63 -> 1 | B71: =B63 -> 4 | C71: Обед | D71: закуска
D72: 1 блюдо
D73: 2 блюдо
D74: гарнир
D75: напиток
D76: хлеб бел.
D77: хлеб черн.
D80: итого | F80: =SUM(F71:F79) -> 0 | G80: =SUM(G71:G79) -> 0 | H80: =SUM(H71:H79) -> 0 | I80: =SUM(I71:I79) -> 0 | J80: =SUM(J71:J79) -> 0 | L80: 0
A81: =A63 -> 1 | B81: =B63 -> 4 | C81: Итого за день: | F81: =F70+F80 -> 500 | G81: =G70+G80 -> 18.32 | H81: =H70+H80 -> 15.83 | I81: =I70+I80 -> 62.69 | J81: =J70+J80 -> 455.28 | L81: 79.66
A82: 1 | B82: 5 | C82: Завтрак | D82: гор.блюдо | E82: каша геркулесовая | F82: 200 | G82: 6.08 | H82: 9.77 | I82: 23.33 | J82: 205.46 | K82: 311 | L82: 21.75
E83: масло сливочное порционно | F83: 15 | G83: 0.005 | H83: 8.25 | I83: 0.08 | J83: 74.8 | L83: 6.75
E84: сыр порционно | F84: 15 | G84: 3.45 | H84: 3.59 | I84: 0 | J84: 54 | L84: 11.5
D85: гор.напиток | E85: кофейный напиток | F85: 200 | G85: 0.52 | H85: 0 | I85: 38.4 | J85: 150.63 | K85: 692 | L85: 13.92
D86: хлеб | E86: хлеб ржано-пшеничный | F86: 30 | G86: 1.68 | H86: 0.33 | I86: 15.45 | J86: 73.5 | L86: 6.96
D87: фрукты | E87: яблоко | F87: 40 | G87: 0.75 | H87: 18.42 | I87: 32.34 | J87: 84.6 | L87: 18.78
D90: итого | F90: =SUM(F82:F89) -> 500 | G90: =SUM(G82:G89) -> 12.485 | H90: 40.36 | I90: 109.6 | J90: 642.99 | L90: 79.66
A91: =A82 -> 1 | B91: =B82 -> 5 | C91: Обед | D91: закуска
D92: 1 блюдо
D93: 2 блюдо
D94: гарнир
D95: напиток
D96: хлеб бел.
D97: хлеб черн.
D100: итого | F100: =SUM(F91:F99) -> 0 | G100: =SUM(G91:G99) -> 0 | H100: =SUM(H91:H99) -> 0 | I100: =SUM(I91:I99) -> 0 | J100: =SUM(J91:J99) -> 0 | L100: 0
A101: =A82 -> 1 | B101: =B82 -> 5 | C101: Итого за день: | F101: =F90+F100 -> 500 | G101: =G90+G100 -> 12.485 | H101: =H90+H100 -> 40.36 | I101: =I90+I100 -> 109.6 | J101: =J90+J100 -> 642.99 | L101: 79.66
A102: 1 | B102: 6 | C102: Завтрак | D102: гор.блюдо | E102: каша рисовая | F102: 200 | G102: 5.79 | H102: 9.04 | I102: 30.98 | J102: 228.85 | K102: 311 | L102: 25.11
E103: сыр порционно | F103: 15 | G103: 3.45 | H103: 3.59 | I103: 0 | J103: 54 | L103: 11.5
D104: гор.напиток | E104: чай с лимоном | F104: 200 | G104: 0.52 | H104: 0 | I104: 38.4 | J104: 150.63 | K104: 689 | L104: 4.2
D105: хлеб | E105: хлеб ржано-пшеничный | F105: 30 | G105: 1.68 | H105: 0.33 | I105: 15.45 | J105: 73.5 | L105: 6.96
D106: фрукты | E106: яблоко | F106: 55 | G106: 0.32 | H106: 7.84 | I106: 13.76 | J106: 36 | L106: 31.89
D109: итого | F109: 25.11 | G109: =SUM(G102:G108) -> 11.76 | H109: 20.8 | I109: 98.59 | J109: 542.98 | L109: 79.66
A110: =A102 -> 1 | B110: 6 | C110: Обед | D110: закуска
D111: 1 блюдо
D112: 2 блюдо
D113: гарнир
D114: напиток
D115: хлеб бел.
D116: хлеб черн.
D119: итого | F119: =SUM(F110:F118) -> 0 | G119: =SUM(G110:G118) -> 0 | H119: =SUM(H110:H118) -> 0 | I119: 0 | J119: 0 | L119: =SUM(L110:L118) -> 0
A120: =A102 -> 1 | B120: =B102 -> 6 | C120: Итого за день: | F120: =F109+F119 -> 25.11 | G120: =G109+G119 -> 11.76 | H120: 20.8 | I120: 98.59 | J120: 542.98 | L120: =L109+L119 -> 79.66
A121: 2 | B121: 1 | C121: Завтрак | D121: гор.блюдо | E121: запеканка из творога | F121: 150 | G121: 20.27 | H121: 31.68 | I121: 387.83 | J121: 387.83 | K121: 366 | L121: 27.02
E122: ряженка | F122: 200 | G122: 2.37 | H122: 1.85 | I122: 13.37 | J122: 74.3 | L122: 16.60
E123: джем порционно | F123: 20 | G123: 0.1 | H123: 0 | I123: 13.76 | J123: 53 | L123: 4.8
D124: гор.напиток
D125: хлеб | E125: хлеб ржано-пшеничный | F125: 30 | G125: 1.68 | H125: 0.33 | I125: 15.45 | J125: 73.5 | L125: 6.96
D126: фрукты | E126: груша | F126: 100 | G126: 0.43 | H126: 0.43 | I126: 18.4 | J126: 48.15 | L126: 24.28
D129: итого | F129: =SUM(F121:F128) -> 500 | G129: =SUM(G121:G128) -> 24.85 | H129: 34.29 | I129: 448.81 | J129: 636.78 | L129: 79.66
A130: =A121 -> 2 | B130: =B121 -> 1 | C130: Обед | D130: закуска
D131: 1 блюдо
D132: 2 блюдо
D133: гарнир
D134: напиток
D135: хлеб бел.
D136: хлеб черн.
D139: итого | F139: =SUM(F130:F138) -> 0 | G139: =SUM(G130:G138) -> 0 | H139: 0 | I139: 0 | J139: 0 | L139: =SUM(L130:L138) -> 0
A140: =A121 -> 2 | B140: =B121 -> 1 | C140: Итого за день: | F140: =F129+F139 -> 500 | G140: =G129+G139 -> 24.85 | H140: =H129+H139 -> 34.29 | I140: =I129+I139 -> 448.81 | J140: =J129+J139 -> 636.78 | L140: 79.66
A141: 2 | B141: 2 | C141: Завтрак | D141: гор.блюдо | E141: каша манная | F141: 200 | G141: 5.76 | H141: 8.16 | I141: 28.25 | J141: 210.08 | K141: 311 | L141: 10.83
E142: сыр порционно | F142: 20 | G142: 8 | H142: 8 | I142: 8.2 | J142: 108 | L142: 20
D143: гор.напиток | E143: чай с сахаром | F143: 200 | G143: 0.14 | H143: 0.04 | I143: 10 | J143: 37.9 | K143: 685 | L143: 3.08
D144: хлеб | E144: хлеб ржано-пшеничный | F144: 30 | G144: 1.68 | H144: 0.33 | I144: 15.45 | J144: 73.5 | L144: 1.56
D145: фрукты | E145: груша | F145: 50 | G145: 0.47 | H145: 0.47 | I145: 20.12 | J145: 52.65 | L145: 44.19
D148: итого | F148: =SUM(F141:F147) -> 500 | G148: =SUM(G141:G147) -> 16.05 | H148: 17 | I148: 82.02 | J148: 482.13 | L148: 79.66
A149: =A141 -> 2 | B149: =B141 -> 2 | C149: Обед | D149: закуска
D150: 1 блюдо
D151: 2 блюдо
D152: гарнир
D153: напиток
D154: хлеб бел.
D155: хлеб черн.
D158: итого | F158: =SUM(F149:F157) -> 0 | G158: =SUM(G149:G157) -> 0 | H158: 0 | I158: 0 | J158: 0 | L158: =SUM(L149:L157) -> 0
A159: =A141 -> 2 | B159: =B141 -> 2 | C159: Итого за день: | F159: =F148+F158 -> 500 | G159: =G148+G158 -> 16.05 | H159: =H148+H158 -> 17 | I159: =I148+I158 -> 82.02 | J159: =J148+J158 -> 482.13 | L159: 79.66
A160: 2 | B160: 3 | C160: Завтрак | D160: гор.блюдо | E160: омлет натуральный | F160: 150 | G160: 14.94 | H160: 15.5 | I160: 2.93 | J160: 209.4 | K160: 340 | L160: 43.64
D162: гор.напиток | E162: чай с молоком | F162: 200 | G162: 1.37 | H162: 0 | I162: 25.9 | J162: 100.44 | K162: 693 | L162: 14.1
D163: хлеб | E163: хлед ржано-пшеничный | F163: 30 | G163: 1.68 | H163: 0.33 | I163: 15.45 | J163: 73.5 | L163: 6.96
D164: фрукты | E164: апельсин | F164: 120 | G164: 0.32 | H164: 7.84 | I164: 13.76 | J164: 36 | L164: 14.96
D167: итого | F167: =SUM(F160:F166) -> 500 | G167: =SUM(G160:G166) -> 18.31 | H167: 23.67 | I167: 58.04 | J167: 419.34 | L167: 79.66
A168: =A160 -> 2 | B168: =B160 -> 3 | C168: Обед | D168: закуска
D169: 1 блюдо
D170: 2 блюдо
D171: гарнир
D172: напиток
D173: хлеб бел.
D174: хлеб черн.
D177: итого | F177: =SUM(F168:F176) -> 0 | G177: =SUM(G168:G176) -> 0 | H177: 0 | I177: 0 | J177: 0 | L177: =SUM(L168:L176) -> 0
A178: =A160 -> 2 | B178: =B160 -> 3 | C178: Итого за день: | F178: =F167+F177 -> 500 | G178: =G167+G177 -> 18.31 | H178: =H167+H177 -> 23.67 | I178: =I167+I177 -> 58.04 | J178: =J167+J177 -> 419.34 | L178: 79.66
A179: 2 | B179: 4 | C179: Завтрак | D179: гор.блюдо | E179: каша геркулесовая | F179: 200 | G179: 6.08 | H179: 9.77 | I179: 23.33 | J179: 205.46 | K179: 311 | L179: 21.75
E181: сыр( порция) | F181: 15 | G181: 3.45 | H181: 3.59 | I181: 0 | J181: 54 | L181: 11.5
D182: гор.напиток | E182: кофейный напиток | F182: 200 | G182: 0.52 | H182: 0 | I182: 38.4 | J182: 150.63 | L182: 20
D183: хлеб | E183: хлеб ржано-пшеничный | F183: 30 | G183: 1.68 | H183: 0.33 | I183: 15.45 | J183: 73.5 | L183: 6.96
D184: фрукты | E184: яблоко | F184: 55 | G184: 0.75 | H184: 18.42 | I184: 32.34 | J184: 84.6 | L184: 19.45
D187: итого | F187: =SUM(F179:F186) -> 500 | G187: =SUM(G179:G186) -> 12.48 | H187: 32.11 | I187: 109.52 | J187: 568.19 | L187: 77.66
A188: =A179 -> 2 | B188: =B179 -> 4 | C188: Обед | D188: закуска
D189: 1 блюдо
D190: 2 блюдо
D191: гарнир
D192: напиток
D193: хлеб бел.
D194: хлеб черн.
D197: итого | F197: =SUM(F188:F196) -> 0 | G197: =SUM(G188:G196) -> 0 | H197: 0 | I197: 0 | J197: 0 | L197: =SUM(L188:L196) -> 0
A198: =A179 -> 2 | B198: =B179 -> 4 | C198: Итого за день: | F198: =F187+F197 -> 500 | G198: =G187+G197 -> 12.48 | H198: =H187+H197 -> 32.11 | I198: =I187+I197 -> 109.52 | J198: =J187+J197 -> 568.19 | L198: 77.66
A199: 2 | B199: 5 | C199: Завтрак | D199: гор.блюдо | E199: каша рисовая | F199: 165 | G199: 5.79 | H199: 9.04 | I199: 30.98 | J199: 228.85 | K199: 311 | L199: 25.11
E200: сыр порционно | F200: 15 | G200: 3.45 | H200: 3.59 | I200: 0 | J200: 54 | L200: 11.5
D201: гор.напиток | E201: чай с лимоном | F201: 200 | G201: 0.52 | H201: 0 | I201: 38.4 | J201: 150.63 | K201: 689 | L201: 4.2
D202: хлеб | E202: хлеб ржанопшеничный | F202: 30 | G202: 1.68 | H202: 0.33 | I202: 15.45 | J202: 73.5 | L202: 6.96
D203: фрукты | E203: яблоко | F203: 90 | G203: 0.43 | H203: 0.43 | I203: 18.4 | J203: 48 | L203: 31.89
D206: итого | F206: =SUM(F199:F205) -> 500 | G206: =SUM(G199:G205) -> 11.87 | H206: 13.39 | I206: 103.23 | J206: 554.98 | L206: 79.66
A207: =A199 -> 2 | B207: =B199 -> 5 | C207: Обед | D207: закуска
D208: 1 блюдо
D209: 2 блюдо
D210: гарнир
D211: напиток
D212: хлеб бел.
D213: хлеб черн.
D216: итого | F216: =SUM(F207:F215) -> 0 | G216: =SUM(G207:G215) -> 0 | H216: 0 | I216: 0 | J216: 0 | L216: =SUM(L207:L215) -> 0
A217: =A199 -> 2 | B217: =B199 -> 5 | C217: Итого за день: | F217: =F206+F216 -> 500 | G217: =G206+G216 -> 11.87 | H217: =H206+H216 -> 13.39 | I217: =I206+I216 -> 103.23 | J217: =J206+J216 -> 554.98 | L217: 79.66
A218: 2 | B218: 6 | C218: Завтрак | D218: гор.блюдо | E218: творожная запеканка | F218: 150 | G218: 20.27 | H218: 31.68 | I218: 387.83 | J218: 387.83 | K218: 366 | L218: 27.02
E219: джем порционно | F219: 20 | G219: 0 | H219: 25.09 | I219: 100.44 | J219: 100.44 | L219: 4.80
D220: гор.напиток | E220: какао | F220: 200 | G220: 0 | H220: 20.64 | I220: 79.5 | J220: 79.5 | K220: 693 | L220: 14.10
D221: хлеб | E221: хлеб ржано-пшеничный | F221: 40 | G221: 1.68 | H221: 0.33 | I221: 15.45 | J221: 73.5 | L221: 6.96
D222: фрукты | E222: яблоко | F222: 90 | G222: 0.32 | H222: 7.84 | I222: 13.76 | J222: 36 | L222: 26.78
D225: итого | F225: =SUM(F218:F224) -> 500 | G225: =SUM(G218:G224) -> 22.27 | H225: 85.58 | I225: 596.98 | J225: 677.27 | L225: 79.66
A226: =A218 -> 2 | B226: 6 | C226: Обед | D226: закуска
D227: 1 блюдо
D228: 2 блюдо
D229: гарнир
D230: напиток
D231: хлеб бел.
D232: хлеб черн.
D235: итого | F235: =SUM(F226:F234) -> 0 | G235: =SUM(G226:G234) -> 0 | H235: 0 | I235: 0 | J235: 0 | L235: =SUM(L226:L234) -> 0
A236: =A218 -> 2 | B236: =B218 -> 6 | C236: Итого за день: | F236: =F225+F235 -> 500 | G236: =G225+G235 -> 22.27 | H236: 85.58 | I236: 596.98 | J236: 677.27 | L236: =L225+L235 -> 79.66
C237: Среднее значение за период: | F237: 500 | G237: =(G24+G43+G62+G81+G101+G120+G140+G159+G178+G198+G217+G236)/(IF(G24=0,0,1)+IF(G43=0,0,1)+IF(G62=0,0,1)+IF(G81=0,0,1)+IF(G101=0,0,1)+IF(G140=0,0,1)+IF(G159=0,0,1)+IF(G178=0,0,1)+IF(G198=0,0,1)+IF(G217=0,0,1)) -> 19.3155 | H237: =(H24+H43+H62+H81+H101+H120+H140+H159+H178+H198+H217+H236)/(IF(H24=0,0,1)+IF(H43=0,0,1)+IF(H62=0,0,1)+IF(H81=0,0,1)+IF(H101=0,0,1)+IF(H140=0,0,1)+IF(H159=0,0,1)+IF(H178=0,0,1)+IF(H198=0,0,1)+IF(H217=0,0,1)) -> 39.259 | I237: =(I24+I43+I62+I81+I101+I120+I140+I159+I178+I198+I217+I236)/(IF(I24=0,0,1)+IF(I43=0,0,1)+IF(I62=0,0,1)+IF(I81=0,0,1)+IF(I101=0,0,1)+IF(I140=0,0,1)+IF(I159=0,0,1)+IF(I178=0,0,1)+IF(I198=0,0,1)+IF(I217=0,0,1)) -> 245.533 | J237: =(J24+J43+J62+J81+J101+J120+J140+J159+J178+J198+J217+J236)/(IF(J24=0,0,1)+IF(J43=0,0,1)+IF(J62=0,0,1)+IF(J81=0,0,1)+IF(J101=0,0,1)+IF(J140=0,0,1)+IF(J159=0,0,1)+IF(J178=0,0,1)+IF(J198=0,0,1)+IF(J217=0,0,1)) -> 664.997 | L237: =(L24+L43+L62+L81+L101+L120+L140+L159+L178+L198+L217+L236)/(IF(L24=0,0,1)+IF(L43=0,0,1)+IF(L62=0,0,1)+IF(L81=0,0,1)+IF(L101=0,0,1)+IF(L140=0,0,1)+IF(L159=0,0,1)+IF(L178=0,0,1)+IF(L198=0,0,1)+IF(L217=0,0,1)) -> 95.392
